fUST/lending_fUST_20240526
["ID","MTS","AMOUNT","RATE_DAILY","PERIOD"]
[327940358,1716688335115,-241.16697,0.00013699,2]
[327940359,1716688335138,-241.16697,0.00013699,2]
[327940360,1716688335160,-241.16697,0.00013699,2]
[327940361,1716688335182,-241.16697,0.00013699,2]
[327940362,1716688335204,-241.16697,0.00013699,2]
[327940363,1716688335226,-241.16697,0.00013699,2]
[327940364,1716688335249,-241.16697,0.00013699,2]
[327940365,1716688335272,-241.16697,0.00013699,2]
[327940366,1716688335294,-241.16697,0.00013699,2]
[327940367,1716688335316,-241.16697,0.00013699,2]
[327940368,1716688335339,-241.16697,0.00013699,2]
[327940369,1716688335360,-241.16697,0.00013699,2]
[327940370,1716688335381,-241.166965,0.00013699,2]
[327940371,1716688335404,-358.737766,0.00013699,2]
[327940372,1716688335426,-358.737766,0.00013699,2]
[327940373,1716688335447,-358.737766,0.00013699,2]
[327940374,1716688335474,-358.737766,0.00013699,2]
[327940375,1716688335497,-358.737766,0.00013699,2]
[327940376,1716688335616,-358.737766,0.00013699,2]
[327940377,1716688335638,-358.737766,0.00013699,2]
[327940378,1716688335660,-358.737766,0.00013699,2]
[327940379,1716688335681,-358.737766,0.00013699,2]
[327940380,1716688335704,-358.737766,0.00013699,2]
[327940381,1716688335725,-358.737766,0.00013699,2]
[327940382,1716688335748,-358.737766,0.00013699,2]
[327940383,1716688335770,-358.737766,0.00013699,2]
[327940384,1716688335791,-358.737766,0.00013699,2]
[327940385,1716688335812,-358.737766,0.00013699,2]
[327940386,1716688335834,-358.737766,0.00013699,2]
[327940387,1716688335855,-358.737766,0.00013699,2]
[327940388,1716688335877,-358.737766,0.00013699,2]
[327940389,1716688335900,-358.737766,0.00013699,2]
[327940390,1716688335924,-358.73776693,0.00013699,2]
[327940391,1716688335945,-289.487594,0.00013699,2]
[327940392,1716688335967,-289.487594,0.00013699,2]
[327940393,1716688335990,-289.487594,0.00013699,2]
[327940394,1716688336013,-289.487594,0.00013699,2]
[327940395,1716688336036,-289.487594,0.00013699,2]
[327940396,1716688336060,-289.487594,0.00013699,2]
[327940397,1716688336082,-289.487594,0.00013699,2]
[327940398,1716688336105,-289.487594,0.00013699,2]
[327940399,1716688336127,-289.487594,0.00013699,2]
[327940400,1716688336153,-289.487594,0.00013699,2]
[327940401,1716688336175,-289.487594,0.00013699,2]
[327940402,1716688336197,-289.487594,0.00013699,2]
[327940403,1716688336218,-289.487594,0.00013699,2]
[327940404,1716688336245,-289.487594,0.00013699,2]
[327940405,1716688336268,-1186.784392,0.00013699,2]
[327940406,1716688336290,-289.487594,0.00013699,2]
[327940407,1716688336312,-1186.784392,0.00013699,2]
[327940408,1716688336334,-289.487594,0.00013699,2]
[327940409,1716688336356,-1186.784392,0.00013699,2]
[327940410,1716688336378,-289.487594,0.00013699,2]
[327940411,1716688336400,-289.487594,0.00013699,2]
[327940412,1716688336421,-289.487594,0.00013699,2]
[327940413,1716688336443,-289.487587,0.00013699,2]
[327940414,1716688336465,-1186.784392,0.00013699,2]
[327940415,1716688336490,-1186.784392,0.00013699,2]
[327940416,1716688336515,-1186.784392,0.00013699,2]
[327940417,1716688336538,-1186.784392,0.00013699,2]
[327940418,1716688336559,-1186.784392,0.00013699,2]
[327940419,1716688336580,-1186.784392,0.00013699,2]
[327940420,1716688336602,-1186.784392,0.00013699,2]
[327940421,1716688336627,-1186.784392,0.00013699,2]
[327940422,1716688336650,-1186.784392,0.00013699,2]
[327940423,1716688336675,-1186.784392,0.00013699,2]
[327940424,1716688336697,-1186.784392,0.00013699,2]
[327940425,1716688336719,-1186.784392,0.00013699,2]
[327940426,1716688336743,-1186.784392,0.00013699,2]
[327940427,1716688336764,-1186.784392,0.00013699,2]
[327940428,1716688336786,-1186.784392,0.00013699,2]
[327940429,1716688336809,-1186.784392,0.00013699,2]
[327940430,1716688336831,-1186.784391,0.00013699,2]
[327940431,1716688336852,-363.398473,0.00013699,2]
[327940432,1716688336874,-363.398473,0.00013699,2]
[327940433,1716688336897,-363.398473,0.00013699,2]
[327940434,1716688336919,-363.398473,0.00013699,2]
[327940435,1716688336942,-363.398473,0.00013699,2]
[327940436,1716688336963,-363.398473,0.00013699,2]
[327940437,1716688336985,-363.398473,0.00013699,2]
[327940438,1716688337010,-363.398473,0.00013699,2]
[327940439,1716688337032,-363.398473,0.00013699,2]
[327940440,1716688337059,-363.398473,0.00013699,2]
[327940441,1716688337083,-363.398473,0.00013699,2]
[327940442,1716688337107,-363.398473,0.00013699,2]
[327940443,1716688337128,-363.398473,0.00013699,2]
[327940444,1716688337152,-363.398473,0.00013699,2]
[327940445,1716688337174,-363.398473,0.00013699,2]
[327940446,1716688337196,-363.398473,0.00013699,2]
[327940447,1716688337217,-363.398473,0.00013699,2]
[327940448,1716688337241,-363.398473,0.00013699,2]
[327940449,1716688337262,-363.398473,0.00013699,2]
[327940450,1716688337285,-363.398472,0.00013699,2]
[327940451,1716688337307,-302.698765,0.00013699,2]
[327940452,1716688337333,-302.698765,0.00013699,2]
[327940453,1716688337359,-302.698765,0.00013699,2]
[327940454,1716688337385,-302.698765,0.00013699,2]
[327940455,1716688337411,-302.698765,0.00013699,2]
[327940456,1716688337436,-302.698765,0.00013699,2]
[327940457,1716688337551,-151.0,0.00013699,2]
[327940458,1716688337578,-302.698765,0.00013699,2]
[327940459,1716688337600,-151.0,0.00013699,2]
[327940460,1716688337622,-302.698765,0.00013699,2]
[327940461,1716688337644,-154.117441,0.00013699,2]
[327940462,1716688337666,-302.698765,0.00013699,2]
[327940463,1716688337688,-302.698765,0.00013699,2]
[327940464,1716688337711,-302.698765,0.00013699,2]
[327940465,1716688337732,-302.698765,0.00013699,2]
[327940466,1716688337754,-302.698765,0.00013699,2]
[327940467,1716688337776,-302.698765,0.00013699,2]
[327940468,1716688337797,-302.698765,0.00013699,2]
[327940469,1716688337818,-302.698765,0.00013699,2]
[327940470,1716688337839,-302.698765,0.00013699,2]
[327940471,1716688337861,-302.698765,0.00013699,2]
[327940472,1716688337882,-302.698765,0.00013699,2]
[327940473,1716688337903,-302.698765,0.00013699,2]
[327940474,1716688337923,-151.0,0.00013699,2]
[327940475,1716688337944,-167.662359,0.00013699,2]
[327940476,1716688337966,-151.0,0.00013699,2]
[327940477,1716688337988,-151.0,0.00013699,2]
[327940478,1716688338009,-151.0,0.00013699,2]
[327940479,1716688338031,-153.170963,0.00013699,2]
[327940480,1716688338057,-248.341469,0.00013699,2]
[327940481,1716688338078,-151.0,0.00013699,2]
[327940482,1716688338100,-151.0,0.00013699,2]
[327940483,1716688338122,-151.0,0.00013699,2]
[327940484,1716688338146,-151.0,0.00013699,2]
[327940485,1716688338167,-151.0,0.00013699,2]
[327940486,1716688338190,-151.0,0.00013699,2]
[327940487,1716688338211,-151.0,0.00013699,2]
[327940488,1716688338234,-151.0,0.00013699,2]
[327940489,1716688338256,-151.0,0.00013699,2]
[327940490,1716688338278,-151.0,0.00013699,2]
[327940491,1716688338299,-151.0,0.00013699,2]
[327940492,1716688338320,-151.0,0.00013699,2]
[327940493,1716688338342,-151.0,0.00013699,2]
[327940494,1716688338363,-151.0,0.00013699,2]
[327940495,1716688338384,-151.0,0.00013699,2]
[327940496,1716688338405,-151.0,0.00013699,2]
[327940497,1716688338427,-151.0,0.00013699,2]
[327940498,1716688338448,-151.0,0.00013699,2]
[327940499,1716688338469,-186.962403,0.00013699,2]
[327940500,1716688338493,-151.0,0.00013699,2]
[327940501,1716688338515,-239.868797,0.00013699,2]
[327940502,1716688338538,-10000.0,0.00013913,2]
[327940503,1716688338559,-204.6669975,0.00014,2]
[327940504,1716688365428,154.86062544,0.0001386,2]
[327940505,1716688385587,156.83657567,0.0001386,2]
[327940506,1716688801646,24900.0,0.00014361,2]
[327940507,1716688933766,2005.43,0.00019,10]
[327940509,1716689114212,2042.4282948,9.999e-05,2]
[327940510,1716689241171,-585.37574948,0.0001522,2]
[327940511,1716689241192,-50.86164052,0.00015288,2]
[327940616,1716689438525,-549.03507386,0.00015288,2]
[327940617,1716689438535,-636.23739,0.0001532,2]
[327940618,1716689438544,-5054.27994619,0.00015322,2]
[327940619,1716689438553,-298.31295942,0.00015384,2]
[327940620,1716689438562,-286.16552833,0.00015385,2]
[327940621,1716689438571,-155.74539459,0.00015385,2]
[327940623,1716689438581,-156.55408668,0.00015386,2]
[327940625,1716689438590,-1422.35770959,0.00015386,2]
[327940627,1716689438599,-365.04735832,0.00015388,2]
[327940629,1716689438609,-224.70364529,0.00015388,2]
[327940631,1716689438619,-10295.72847473,0.00015388,2]
[327941225,1716689446356,-8971.32447674,0.00015388,2]
[327941227,1716689446366,-155.14028067,0.00015388,2]
[327941229,1716689446375,-3375.61311874,0.00015388,2]
[327941231,1716689446384,-2091.43127022,0.00015388,2]
[327941233,1716689446393,-241.8,0.00015435,3]
[327941234,1716689446403,-241.8,0.00015435,2]
[327941236,1716689446412,-151.0,0.00015435,3]
[327941239,1716689446422,-151.0,0.00015435,2]
[327941241,1716689446432,-190.12040614,0.000156,2]
[327941243,1716689446446,-241.8,0.00016273,2]
[327941244,1716689446455,-3000.0,0.00016438,2]
[327941246,1716689446464,-3000.0,0.00016438,2]
[327941248,1716689446474,-3000.0,0.00016438,2]
[327941250,1716689446484,-3000.0,0.00016438,2]
[327941252,1716689446494,-3000.0,0.00016438,2]
[327941254,1716689446504,-3000.0,0.00016438,2]
[327941256,1716689446515,-3000.0,0.00016438,2]
[327941259,1716689446525,-151.0,0.00016438,2]
[327941260,1716689446534,-151.0,0.00016438,2]
[327941262,1716689446543,-151.0,0.00016438,2]
[327941264,1716689446553,-151.0,0.00016438,2]
[327941266,1716689446562,-151.0,0.00016438,2]
[327941268,1716689446571,-151.0,0.00016438,2]
[327941270,1716689446580,-151.0,0.00016438,2]
[327941272,1716689446590,-151.0,0.00016438,2]
[327941274,1716689446599,-151.0,0.00016438,2]
[327941276,1716689446608,-264.052421,0.00016438,2]
[327941278,1716689446617,-151.0,0.00016438,2]
[327941279,1716689446626,-203.670803,0.00016438,2]
[327941281,1716689446635,-151.0,0.00016438,2]
[327941283,1716689446645,-151.0,0.00016438,2]
[327941285,1716689446654,-152.279378,0.00016438,2]
[327941287,1716689446663,-3111.493499,0.00016438,2]
[327941289,1716689446673,-3111.493499,0.00016438,2]
[327941291,1716689446682,-3111.493499,0.00016438,2]
[327941293,1716689446692,-3111.493499,0.00016438,2]
[327941295,1716689446703,-3111.493499,0.00016438,2]
[327941297,1716689446712,-3111.493499,0.00016438,2]
[327941299,1716689446722,-3111.493499,0.00016438,2]
[327941301,1716689446732,-3111.493499,0.00016438,2]
[327941303,1716689446741,-3111.493499,0.00016438,2]
[327941305,1716689446750,-3111.493499,0.00016438,2]
[327941307,1716689446759,-1161.757431,0.00016438,2]
[327941309,1716689446768,-1161.757431,0.00016438,2]
[327941311,1716689446777,-1161.757431,0.00016438,2]
[327941313,1716689446787,-1161.757431,0.00016438,2]
[327941315,1716689446797,-1161.757431,0.00016438,2]
[327941317,1716689446806,-1161.757431,0.00016438,2]
[327941319,1716689446816,-274.71288917,0.000165,2]
[327941321,1716689446825,-623.76314033,0.00016796,2]
[327941323,1716689446835,-241.8,0.00017112,2]
[327941325,1716689446844,-620.18815702,0.00017636,2]
[327941327,1716689446854,-10000.0,0.00017672,2]
[327941329,1716689446864,-151.0,0.00017672,2]
[327941331,1716689446873,-3111.493499,0.00017672,2]
[327941333,1716689446883,-3111.493499,0.00017672,2]
[327941334,1716689446892,-151.0,0.00017672,2]
[327941335,1716689446901,-1161.757431,0.00017672,2]
[327941337,1716689446910,-1161.757431,0.00017672,2]
[327941338,1716689446921,-197.3394248,0.00017868,2]
[327941340,1716689446930,-153.0,0.00017868,2]
[327941341,1716689446940,-153.0,0.00017868,2]
[327941343,1716689446949,-10461.69717638,0.00017898,2]
[327941344,1716689446959,-151.0,0.00017898,2]
[327941346,1716689446968,-3111.493499,0.00017898,2]
[327941347,1716689446977,-3111.493499,0.00017898,2]
[327941348,1716689446987,-151.0,0.00017898,2]
[327941350,1716689446996,-1161.757431,0.00017898,2]
[327941351,1716689447006,-1161.757431,0.00017898,2]
[327941353,1716689447015,-2000.0,0.000179,2]
[327941354,1716689447024,-151.0,0.00017941,2]
[327941356,1716689447034,-1161.757431,0.00017947,2]
[327941358,1716689447043,-1161.757431,0.00017947,2]
[327941359,1716689447053,-241.8,0.0001795,2]
[327941361,1716689447062,-440.66031195,0.00017999,2]
[327941362,1716689447071,-13479.23073685,0.00018,7]
[327941363,1716689447081,-28179.90025702,0.00018,2]
[327941365,1716689447090,-5207.43687869,0.00018,2]
[327941367,1716689447104,-979.03029379,0.00018,2]
[327945947,1716690442139,-190.12040614,0.00015954,2]
[327945948,1716690442160,-274.77958442,0.00017897,2]
[327945949,1716690442180,-10462.98123862,0.00017999,2]
[327945950,1716690442200,-286.04727348,0.00018,2]
[327945951,1716690442220,-8366.79891585,0.00018,7]
[327945952,1716690442241,-446.73919833,0.00018517,2]
[327946101,1716690638552,-151.0,0.00015575,3]
[327946102,1716690638564,-151.0,0.00015575,2]
[327946103,1716690638574,-151.0,0.00016401,2]
[327946104,1716690638584,-151.0,0.00017226,2]
[327946105,1716690638593,-6313.35937552,0.00017315,2]
[327946136,1716690646743,-190.12040614,0.00017314,2]
[327946137,1716690646753,-4120.31609345,0.00017315,2]
[327946139,1716691022613,1000.0,0.00012,7]
[327946142,1716691638124,-190.12040614,0.000156,2]
[327946143,1716691638146,-151.0,0.00015677,3]
[327946144,1716691638167,-151.0,0.00015677,2]
[327946145,1716691638188,-2175.1047475,0.00016139,2]
[327946184,1716691839042,-151.0,0.00015682,3]
[327946185,1716691839052,-151.0,0.00015682,2]
[327946186,1716691839062,-20.26713808,0.00016139,2]
[327946204,1716691847051,-265.7801354,0.00016139,2]
[327946205,1716691847061,-11980.1237186,0.00016139,2]
[327946207,1716691847070,-151.0,0.00016498,2]
[327946209,1716691847079,-151.0,0.00017314,2]
[327946210,1716691847089,-620.00940785,0.00017592,2]
[327946211,1716691847098,-240.7670419,0.00017778,2]
[327946212,1716691847108,-742.35323613,0.00017898,7]
[327946213,1716692135290,2655.6320997,0.00033404,30]
[327946214,1716692826149,-585.37574948,0.00016111,2]
[327946215,1716692826172,-50.86164052,0.00016211,3]
[327946259,1716693038217,-250.03009891,0.00016211,2]
[327946605,1716693042018,-36.01717457,0.00016211,2]
[327946607,1716693042028,-151.0,0.00016211,3]
[327946609,1716693042038,-151.0,0.00016211,2]
[327946611,1716693042047,-151.0,0.00016211,3]
[327946613,1716693042056,-151.0,0.00016979,2]
[327946615,1716693042065,-153.0,0.000179,2]
[327946617,1716693042075,-153.0,0.000179,2]
[327946619,1716693042086,-153.0,0.000179,2]
[327946621,1716693042099,-153.0,0.000179,2]
[327946623,1716693042109,-6353.60504543,0.00017999,2]
[327948216,1716693085211,190.12040614,0.000156,2]
[327948217,1716693183862,150.5,0.00024647,35]
[327948218,1716693183920,589.0,0.00024647,35]
[327948219,1716693184341,150.5,0.00024637,35]
[327948220,1716693184398,589.0,0.00024637,35]
[327948221,1716693184830,152.76,0.00024627,35]
[327948222,1716693184886,589.0,0.00024627,35]
[327948223,1716693185360,589.0,0.0002679,35]
[327948224,1716693185945,589.0,0.0002678,35]
[327948225,1716693186476,589.0,0.0002677,35]
[327948226,1716693305167,648.0,0.00024647,35]
[327948227,1716693305568,648.0,0.00024637,35]
[327948228,1716693306079,648.0,0.00024627,35]
[327948229,1716693306566,648.0,0.0002679,35]
[327948230,1716693307054,648.0,0.0002678,35]
[327948231,1716693307545,648.0,0.0002677,35]
[327948232,1716693423344,150.5,0.00024647,35]
[327948233,1716693423654,150.5,0.00024637,35]
[327948234,1716693423831,150.5,0.00024647,35]
[327948235,1716693424147,199.83,0.00024627,35]
[327948236,1716693424444,150.5,0.00024637,35]
[327948237,1716693424806,548.0,0.00024647,35]
[327948238,1716693424858,150.5,0.00024627,35]
[327948239,1716693425289,548.0,0.00024637,35]
[327948240,1716693425780,548.0,0.00024627,35]
[327948241,1716693426279,548.0,0.0002678,35]
[327948242,1716693426783,548.0,0.0002677,35]
[327948243,1716693427282,548.0,0.0002676,35]
[327948244,1716693543228,150.5,0.00024647,35]
[327948245,1716693543698,150.5,0.00024637,35]
[327948246,1716693544229,150.5,0.00024627,35]
[327948247,1716693545182,421.0,0.00024647,35]
[327948248,1716693545692,421.0,0.00024637,35]
[327948249,1716693546188,421.0,0.00024627,35]
[327948250,1716693546974,421.0,0.0002679,35]
[327948251,1716693547170,421.0,0.0002678,35]
[327948252,1716693547669,421.0,0.0002677,35]
[327948254,1716693664746,310.0,0.00024647,35]
[327948255,1716693665383,310.0,0.00024637,35]
[327948256,1716693665890,310.0,0.00024627,35]
[327948257,1716693666379,310.0,0.0002679,35]
[327948258,1716693666910,310.0,0.0002678,35]
[327948259,1716693667396,310.0,0.0002677,35]
[327948260,1716693784849,223.0,0.00024647,35]
[327948261,1716693785344,223.0,0.00024637,35]
[327948262,1716693785848,223.0,0.00024627,35]
[327948263,1716693786402,223.0,0.0002679,35]
[327948264,1716693786896,223.0,0.0002678,35]
[327948265,1716693787412,223.0,0.0002677,35]
[327948266,1716693904881,158.0,0.00024647,35]
[327948267,1716693905456,158.0,0.00024637,35]
[327948268,1716693905950,158.0,0.00024627,35]
[327948269,1716693906469,158.0,0.00026565,35]
[327948270,1716693907499,158.0,0.00026555,35]
[327948271,1716693908011,158.0,0.00026545,35]
[327948272,1716694024924,150.5,0.00024647,35]
[327948273,1716694025481,150.5,0.00024637,35]
[327948274,1716694025900,150.5,0.00024627,35]
[327948275,1716694026420,150.5,0.0002679,35]
[327948276,1716694026909,150.5,0.0002678,35]
[327948277,1716694027420,150.5,0.0002677,35]
[327948279,1716694145337,150.5,0.00024647,35]
[327948280,1716694145821,150.5,0.00024637,35]
[327948281,1716694146308,150.5,0.00024627,35]
[327948282,1716694146806,222.0,0.0002679,35]
[327948373,1716694238559,-190.12040614,0.00016159,2]
[327948375,1716694238568,-809.87909399,0.0001616,2]
[327948680,1716694242160,-638.36546201,0.0001616,2]
[327950712,1716694264318,150.5,0.00024647,35]
[327950774,1716694264905,150.5,0.00024637,35]
[327950828,1716694265400,150.5,0.00024627,35]
[327951186,1716694356299,2994.61641925,0.00033409,120]
[327951187,1716694383691,234.59,0.00024647,35]
[327951193,1716694684388,382.11674715,0.00033409,30]
[327951194,1716694833826,3518.89593442,0.00016509,7]
[327951195,1716694895522,1759.44796721,0.00016509,7]
[327951196,1716694950814,879.72398361,0.00016509,7]
[327951197,1716695013218,439.8619918,0.00016509,7]
[327951198,1716695073549,219.9309959,0.00016509,7]
[327951199,1716695132407,219.93099589,0.00016509,7]
[327951207,1716695427728,150.651,0.00014808,2]
[327951250,1716695432416,-1073.69071591,0.00016159,2]
[327951281,1716695441592,-496.36527315,0.00016159,2]
[327951282,1716695441604,-7420.43651993,0.00016159,2]
[327951283,1716695441613,-902.58679546,0.00016247,2]
[327951292,1716695443639,-13546.15689794,0.00016247,2]
[327951293,1716695443649,-274.77958442,0.000165,2]
[327951294,1716695443658,-286.04727348,0.00016509,2]
[327951295,1716695443667,-151.0,0.00016593,3]
[327951296,1716695443676,-151.0,0.00016593,2]
[327951297,1716695443686,-153.0,0.000172,2]
[327951298,1716695443695,-153.0,0.000172,2]
[327951299,1716695443704,-151.0,0.00017326,2]
[327951300,1716695443713,-620.00047039,0.00017548,2]
[327951301,1716695443723,-306.0,0.000176,2]
[327951302,1716695443732,-153.0,0.000176,2]
[327951303,1716695443741,-153.0,0.000176,2]
[327951304,1716695443750,-153.0,0.000176,2]
[327951305,1716695443760,-153.0,0.000176,2]
[327951306,1716695443769,-153.0,0.000176,2]
[327951307,1716695443779,-320.28878671,0.00017615,2]
[327951308,1716695443789,-306.0,0.00017678,2]
[327951309,1716695443799,-933.44805,0.00017715,2]
[327951310,1716695443808,-933.44805,0.00017715,2]
[327951311,1716695443818,-151.0,0.00017715,2]
[327951313,1716695443828,-151.0,0.00017715,2]
[327951316,1716695443839,-151.0,0.00017715,2]
[327951317,1716695443849,-151.0,0.00017715,2]
[327951319,1716695443859,-151.0,0.00017715,2]
[327951320,1716695443869,-151.0,0.00017715,2]
[327951321,1716695443882,-290.5781,0.00017715,2]
[327951322,1716695443892,-151.0,0.00017715,2]
[327951323,1716695443902,-151.0,0.00017715,2]
[327951324,1716695443912,-583.3541146,0.00017715,2]
[327951325,1716695443923,-291.6770573,0.00017715,2]
[327951326,1716695443933,-291.6770573,0.00017715,2]
[327951327,1716695443942,-291.6770573,0.00017715,2]
[327951328,1716695443952,-291.6770573,0.00017715,2]
[327951329,1716695443964,-291.6770573,0.00017715,2]
[327951330,1716695443974,-291.6770573,0.00017715,2]
[327951331,1716695443983,-291.6770573,0.00017715,2]
[327951332,1716695443993,-291.6770573,0.00017715,2]
[327951333,1716695444002,-373.8045461,0.00017749,2]
[327951334,1716695444012,-291.6770573,0.00017749,2]
[327951335,1716695444022,-291.6770573,0.00017749,2]
[327951336,1716695444032,-291.6770573,0.00017749,2]
[327951337,1716695444041,-291.6770573,0.00017749,2]
[327951338,1716695444051,-291.6770573,0.00017749,2]
[327951339,1716695444061,-291.6770573,0.00017749,2]
[327951340,1716695444070,-295.3356943,0.00017749,2]
[327951341,1716695444079,-291.6770573,0.00017749,2]
[327951342,1716695444088,-291.6770573,0.00017749,2]
[327951343,1716695444098,-291.6770573,0.00017749,2]
[327951344,1716695444108,-10541.31001923,0.00017846,2]
[327951345,1716695444117,-933.44805,0.00017846,2]
[327951346,1716695444127,-933.44805,0.00017846,2]
[327951347,1716695444137,-151.0,0.00017846,2]
[327951348,1716695444146,-151.0,0.00017846,2]
[327951349,1716695444156,-933.44805,0.00017898,2]
[327951350,1716695444166,-933.44805,0.00017898,2]
[327951351,1716695444175,-231.708209,0.00017898,2]
[327951352,1716695444185,-248.05806,0.000179,2]
[327951353,1716695444195,-153.0,0.000179,2]
[327951354,1716695444204,-291.6248309,0.000179,2]
[327951355,1716695444215,-10462.98123862,0.00017921,2]
[327951356,1716695444224,-933.44805,0.00017922,2]
[327951357,1716695444233,-933.44805,0.00017922,2]
[327951358,1716695444243,-153.0,0.00017978,2]
[327951359,1716695444252,-155.00435157,0.00017998,2]
[327951360,1716695444262,-227.11104003,0.00017999,2]
[327951361,1716695444271,-6739.61536842,0.00018,7]
[327951362,1716695444281,-116723.99825908,0.00018,2]
[327951363,1716695444291,-320.0,0.00018,2]
[327951364,1716695444301,-8366.79891585,0.00018,7]
[327951365,1716695444310,-150.57509376,0.00018,2]
[327951369,1716695470424,703.35874807,9.999e-05,2]
[327951372,1716695524875,155.00805733,9.999e-05,2]
[327951373,1716695551349,154.8915759,9.999e-05,2]
[327951374,1716695570362,1098.17565538,0.00015,2]
[327951379,1716696440193,-286.04727348,0.00016159,2]
[327951380,1716696440213,-350.19011652,0.00016244,2]
[327951381,1716696457478,286.04727348,0.00015,2]
[327951382,1716696473421,286.04727348,0.00015,2]
[327951383,1716696489418,286.04727348,0.00015,2]
[327951384,1716696507428,286.04727348,0.00015,2]
[327951385,1716696525419,286.04727348,0.00015,2]
[327951387,1716696545435,410.6129534,0.00015,2]
[327951470,1716696643664,-24900.0,0.00016344,2]
[327951471,1716696643674,-274.77958442,0.00016749,2]
[327951472,1716696643683,-235.18563296,0.0001675,2]
[327951473,1716696643692,-151.0,0.00016847,2]
[327951474,1716696643701,-151.0,0.00016847,3]
[327951475,1716696643711,-151.0,0.00016847,3]
[327951476,1716696643720,-151.0,0.00016847,2]
[327951477,1716696643730,-587.3233215,0.00016927,2]
[327951478,1716696643739,-620.00002352,0.00017505,2]
[327951479,1716696643754,-151.0,0.00017557,2]
[327951480,1716696643766,-151.0,0.00017557,2]
[327951483,1716696643776,-204.6274004,0.00017897,2]
[327951485,1716696643785,-10462.98123862,0.00017898,2]
[327951487,1716696643795,-280.25268838,0.000179,2]
[327951489,1716696643803,-155.1171696,0.00017999,2]
[327951491,1716696643813,-604.51783773,0.00018,2]
[327951493,1716696643825,-22260.58509769,0.00018,2]
[327951495,1716696643835,-896.50695997,0.00018121,2]
[327951496,1716696643845,-259.3542236,0.00018122,2]
[327951498,1716696643855,-151.0,0.00018267,2]
[327951500,1716696643865,-620.00000118,0.0001838,2]
[327951501,1716696643874,-222.48130443,0.00018504,2]
[327951502,1716696643884,-306.84259384,0.00018885,2]
[327951503,1716696643894,-4884.62709967,0.000189,2]
[327951504,1716696643903,-151.0,0.00018977,2]
[327951505,1716696643913,-2000.0,0.00018978,2]
[327951506,1716696643922,-258.1926785,0.00019,2]
[327951507,1716696643932,-5000.0,0.00019,3]
[327951508,1716696643941,-5000.0,0.00019,3]
[327951509,1716696643950,-312.26152711,0.00019073,2]
[327951510,1716696643959,-270.18744518,0.00019074,2]
[327951511,1716696643968,-448.15191594,0.00019074,2]
[327951512,1716696643978,-190.12040614,0.00019075,2]
[327951513,1716696643988,-151.0,0.00019076,2]
[327951514,1716696643997,-151.0,0.00019076,2]
[327951515,1716696644006,-151.0,0.00019076,2]
[327951516,1716696644015,-155.162203,0.00019076,2]
[327951517,1716696644024,-151.0,0.00019076,2]
[327951518,1716696644034,-151.0,0.00019076,2]
[327951519,1716696644043,-204.320242,0.00019076,2]
[327951520,1716696644053,-151.0,0.00019076,2]
[327951521,1716696644062,-151.0,0.00019076,2]
[327951522,1716696644071,-151.0,0.00019076,2]
[327951523,1716696644081,-151.0,0.00019076,2]
[327951524,1716696644090,-560.06883,0.00019076,2]
[327951525,1716696644099,-560.06883,0.00019076,2]
[327951526,1716696644109,-560.06883,0.00019076,2]
[327951527,1716696644118,-560.06883,0.00019076,2]